fUST/lending_fUST_20241114
["ID","MTS","AMOUNT","RATE_DAILY","PERIOD"]
[342189888,1731573067239,-922.15,0.00022465,2]
[342189889,1731573067249,-500.0,0.00022465,2]
[342189890,1731573067258,-500.0,0.00022465,2]
[342189891,1731573067268,-500.0,0.00022465,2]
[342189892,1731573067278,-500.0,0.00022465,2]
[342189893,1731573067288,-193.46059687,0.00022465,2]
[342189894,1731573067297,-500.0,0.00022465,2]
[342189895,1731573067306,-500.0,0.00022465,2]
[342189896,1731573067316,-500.0,0.00022465,2]
[342189897,1731573067326,-500.0,0.00022465,2]
[342189898,1731573067335,-500.0,0.00022465,2]
[342189899,1731573067344,-571.34897353,0.00022465,2]
[342189900,1731573067354,-500.0,0.00022465,2]
[342189901,1731573067363,-500.0,0.00022465,2]
[342189902,1731573067372,-2469.96,0.00022465,2]
[342189903,1731573067382,-356.61712579,0.00022465,2]
[342189904,1731573067391,-927.32,0.00022465,2]
[342189905,1731573067400,-500.0,0.00022465,2]
[342189906,1731573067410,-679.79,0.00022465,2]
[342189907,1731573067419,-561.77450921,0.00022465,2]
[342189908,1731573067429,-500.0,0.00022465,2]
[342189909,1731573067438,-500.0,0.00022465,2]
[342189910,1731573067447,-842.88,0.00022465,2]
[342189911,1731573067457,-1415.94,0.00022465,2]
[342189912,1731573067466,-526.40245948,0.00022465,2]
[342189913,1731573067476,-1146.99,0.00022465,2]
[342189914,1731573067485,-500.0,0.00022465,2]
[342189915,1731573067495,-500.0,0.00022465,2]
[342189916,1731573067504,-500.0,0.00022465,2]
[342189917,1731573067514,-500.0,0.00022465,2]
[342189918,1731573067523,-583.8,0.00022465,2]
[342189919,1731573067532,-602.76601095,0.00022465,2]
[342189920,1731573067541,-500.0,0.00022465,2]
[342189921,1731573067551,-500.0,0.00022465,2]
[342189922,1731573067560,-1972.19,0.00022465,2]
[342189923,1731573067570,-522.60043523,0.00022465,2]
[342189924,1731573067580,-271.3377607,0.00022465,2]
[342189925,1731573067589,-500.0,0.00022465,2]
[342189926,1731573067598,-500.0,0.00022465,2]
[342189927,1731573067607,-412.10598203,0.00022465,2]
[342189928,1731573067617,-525.78907579,0.00022465,2]
[342189929,1731573067626,-500.0,0.00022465,2]
[342189930,1731573067636,-887.8,0.00022465,2]
[342189931,1731573067645,-3866.65,0.00022465,2]
[342189932,1731573067654,-500.0,0.00022465,2]
[342189933,1731573067664,-583.5764243,0.00022465,2]
[342189934,1731573067673,-500.0,0.00022465,2]
[342189935,1731573067682,-500.0,0.00022465,2]
[342189936,1731573067691,-500.0,0.00022465,2]
[342189937,1731573067701,-1028.53,0.00022465,2]
[342189938,1731573067711,-500.49,0.00022465,2]
[342189939,1731573067720,-500.0,0.00022465,2]
[342189940,1731573067729,-500.1534354,0.00022465,2]
[342189941,1731573067738,-500.0,0.00022465,2]
[342189942,1731573067747,-530.32893003,0.00022465,2]
[342189943,1731573067757,-500.6,0.00022465,2]
[342189944,1731573067766,-505.8984752,0.00022465,2]
[342189945,1731573067775,-551.13,0.00022465,2]
[342189946,1731573067784,-554.7,0.00022465,2]
[342189947,1731573067793,-500.0,0.00022465,2]
[342189948,1731573067803,-535.51254884,0.00022465,2]
[342189949,1731573067812,-500.0,0.00022465,2]
[342189950,1731573067823,-500.0,0.00022465,2]
[342189951,1731573067832,-500.0,0.00022465,2]
[342189952,1731573067842,-2235.09,0.00022465,2]
[342189953,1731573067853,-1562.1,0.00022465,2]
[342189954,1731573067862,-500.0,0.00022465,2]
[342189955,1731573067872,-500.0,0.00022465,2]
[342189956,1731573067881,-500.0,0.00022465,2]
[342189957,1731573067892,-504.9507244,0.00022465,2]
[342189958,1731573067901,-500.0,0.00022465,2]
[342189959,1731573067911,-500.0,0.00022465,2]
[342189960,1731573067919,-500.0,0.00022465,2]
[342189961,1731573067932,-280.31511791,0.00022465,2]
[342189962,1731573067942,-2880.8,0.00022465,2]
[342189963,1731573067952,-500.0,0.00022465,2]
[342189964,1731573067963,-879.61,0.00022465,2]
[342189965,1731573067973,-500.0,0.00022465,2]
[342189966,1731573067982,-500.0,0.00022465,2]
[342189967,1731573067992,-502.15732816,0.00022465,2]
[342189968,1731573068001,-1120.94,0.00022465,2]
[342189969,1731573068011,-500.0,0.00022465,2]
[342189970,1731573068020,-358.73820006,0.00022465,2]
[342189971,1731573068029,-461.92657547,0.00022465,2]
[342189972,1731573068040,-4889.16,0.00022465,2]
[342189973,1731573068049,-812.97,0.00022465,2]
[342189974,1731573068058,-500.0,0.00022465,2]
[342189975,1731573068067,-500.0,0.00022465,2]
[342189976,1731573068080,-6480.3,0.00022465,2]
[342189977,1731573068089,-500.0,0.00022465,2]
[342189978,1731573068099,-763.17,0.00022465,2]
[342189979,1731573068109,-503.04412915,0.00022465,2]
[342189980,1731573068118,-500.0,0.00022465,2]
[342189981,1731573068128,-500.0,0.00022465,2]
[342189982,1731573068138,-570.83,0.00022465,2]
[342189983,1731573068147,-1728.07,0.00022465,2]
[342189984,1731573068157,-500.0,0.00022465,2]
[342189985,1731573068166,-500.0,0.00022465,2]
[342189986,1731573068175,-500.2,0.00022465,2]
[342189987,1731573068185,-785.99,0.00022465,2]
[342189988,1731573068194,-500.0,0.00022465,2]
[342189989,1731573068203,-500.0,0.00022465,2]
[342189990,1731573068212,-749.97,0.00022465,2]
[342189991,1731573068222,-500.0,0.00022465,2]
[342189992,1731573068231,-500.0,0.00022465,2]
[342189993,1731573068241,-502.13378245,0.00022465,2]
[342189994,1731573068250,-691.75,0.00022465,2]
[342189995,1731573068259,-1127.81,0.00022465,2]
[342189996,1731573068269,-500.0,0.00022465,2]
[342189997,1731573068279,-500.0,0.00022465,2]
[342189998,1731573068288,-159.21703966,0.00022465,2]
[342189999,1731573068297,-638.64227825,0.00022465,2]
[342190000,1731573068306,-500.0,0.00022465,2]
[342190001,1731573068315,-845.95,0.00022465,2]
[342190002,1731573068327,-567.12255665,0.00022465,2]
[342190003,1731573068336,-501.37163442,0.00022465,2]
[342190004,1731573068346,-1203.61,0.00022465,2]
[342190005,1731573068354,-506.6504716,0.00022465,2]
[342190006,1731573068363,-500.0,0.00022465,2]
[342190007,1731573068372,-500.0,0.00022465,2]
[342190008,1731573068381,-500.0,0.00022465,2]
[342190009,1731573068391,-500.0,0.00022465,2]
[342190010,1731573068400,-817.32,0.00022465,2]
[342190011,1731573068409,-151.32700995,0.00022465,2]
[342190012,1731573068419,-1024.69,0.00022465,2]
[342190013,1731573068428,-500.0,0.00022465,2]
[342190014,1731573068436,-500.0,0.00022465,2]
[342190015,1731573068446,-500.0,0.00022465,2]
[342190016,1731573068455,-500.0,0.00022465,2]
[342190017,1731573068464,-500.0,0.00022465,2]
[342190018,1731573068474,-151.0,0.0002248,2]
[342190019,1731573068483,-500.0,0.00022516,2]
[342190020,1731573068492,-1000.0,0.00022521,2]
[342190021,1731573068582,-1000.0,0.00022521,2]
[342190022,1731573068592,-1000.0,0.00022521,2]
[342190023,1731573068601,-1003.13943255,0.00022521,2]
[342190024,1731573068610,-370.25168127,0.00022521,2]
[342190025,1731573068619,-1121.12522175,0.00022521,2]
[342190026,1731573068628,-501.78385684,0.00022521,2]
[342190027,1731573068638,-1000.0,0.00022521,2]
[342190028,1731573068647,-1000.0,0.00022521,2]
[342190029,1731573068657,-530.0,0.00022679,2]
[342190030,1731573068666,-150.0,0.00022679,2]
[342190031,1731573068675,-2388.0,0.00022679,2]
[342190032,1731573068684,-1115.0,0.00022679,2]
[342190033,1731573068693,-151.0,0.00022739,7]
[342190034,1731573068702,-151.0,0.00022739,7]
[342190035,1731573068711,-151.0,0.00022739,7]
[342190036,1731573068721,-151.0,0.00022739,7]
[342190037,1731573068730,-153.517899,0.00022739,7]
[342190038,1731573068739,-153.517899,0.00022739,7]
[342190039,1731573068748,-153.517899,0.00022739,7]
[342190040,1731573068758,-153.517899,0.00022739,7]
[342190041,1731573068768,-157.705127,0.00022739,7]
[342190042,1731573068777,-178.331926,0.00022739,7]
[342190043,1731573068786,-343.266896,0.00022739,7]
[342190044,1731573068796,-343.266896,0.00022739,7]
[342190045,1731573068805,-1496.705765,0.00022739,7]
[342190046,1731573068814,-1496.705765,0.00022739,7]
[342190047,1731573068825,-1496.705765,0.00022739,7]
[342190048,1731573068834,-1496.705765,0.00022739,7]
[342190049,1731573068844,-163.702493,0.00022739,7]
[342190050,1731573068856,-163.702493,0.00022739,7]
[342190051,1731573068865,-199.097967,0.00022739,7]
[342190052,1731573068875,-199.097967,0.00022739,7]
[342190053,1731573068885,-503.99300186,0.00022739,2]
[342190054,1731573068896,-500.0,0.00022739,2]
[342190055,1731573068906,-260.38334626,0.00022739,2]
[342190056,1731573068915,-500.0,0.00022739,2]
[342190057,1731573068926,-500.0,0.00022739,2]
[342190058,1731573068935,-500.0,0.00022739,2]
[342190059,1731573068945,-385.14110928,0.00022739,2]
[342190060,1731573068954,-500.0,0.00022739,2]
[342190061,1731573068964,-509.94583366,0.00022739,2]
[342190062,1731573068973,-500.0,0.00022739,2]
[342190063,1731573068983,-500.0,0.00022739,2]
[342190064,1731573068993,-485.738914,0.00022739,7]
[342190065,1731573069002,-485.738914,0.00022739,7]
[342190066,1731573069011,-299.10272157,0.00022739,2]
[342190067,1731573069021,-504.55,0.00022739,2]
[342190068,1731573069031,-500.0,0.00022739,2]
[342190069,1731573069040,-500.0,0.00022739,2]
[342190070,1731573069050,-757.47,0.00022739,2]
[342190071,1731573069059,-503.47268265,0.00022739,2]
[342190072,1731573069069,-529.55188,0.00022739,2]
[342190073,1731573069080,-500.0,0.00022739,2]
[342190074,1731573069090,-522.5994641,0.00022739,2]
[342190075,1731573069099,-500.0,0.00022739,2]
[342190076,1731573069109,-635.69703205,0.00022739,2]
[342190077,1731573069118,-500.0,0.00022739,2]
[342190078,1731573069127,-500.0,0.00022739,2]
[342190079,1731573069137,-500.0,0.00022739,2]
[342190080,1731573069146,-200.0,0.00022739,2]
[342190081,1731573069156,-500.0,0.00022739,2]
[342190082,1731573069165,-518.11833074,0.00022739,2]
[342190083,1731573069175,-500.0,0.00022739,2]
[342190084,1731573069184,-573.26377984,0.00022739,2]
[342190085,1731573069193,-835.68,0.00022739,2]
[342190086,1731573069203,-500.0,0.00022739,2]
[342190087,1731573069214,-174.50681737,0.00022739,2]
[342190088,1731573069223,-281.38917294,0.00022739,2]
[342190089,1731573069233,-510.82128587,0.00022739,2]
[342190090,1731573069242,-500.0,0.00022739,2]
[342190091,1731573069252,-500.0,0.00022739,2]
[342190092,1731573069261,-639.9857472,0.00022739,2]
[342190093,1731573069271,-509.79922126,0.00022739,2]
[342190094,1731573069281,-500.0,0.00022739,2]
[342190095,1731573069290,-500.0,0.00022739,2]
[342190096,1731573069300,-500.0,0.00022739,2]
[342190097,1731573069310,-500.0,0.00022739,2]
[342190098,1731573069319,-500.0,0.00022739,2]
[342190099,1731573069333,-584.24,0.00022739,2]
[342190100,1731573069342,-500.0,0.00022739,2]
[342190101,1731573069353,-500.0,0.00022739,2]
[342190102,1731573069362,-500.0,0.00022739,2]
[342190103,1731573069372,-500.0,0.00022739,2]
[342190104,1731573069381,-641.52,0.00022739,2]
[342190105,1731573069390,-500.0,0.00022739,2]
[342190106,1731573069399,-684.54,0.00022739,2]
[342190107,1731573069408,-500.0,0.00022739,2]
[342190108,1731573069417,-500.0,0.00022739,2]
[342190109,1731573069427,-500.0,0.00022739,2]
[342190110,1731573069436,-509.3,0.00022739,2]
[342190111,1731573069445,-553.539665,0.00022739,2]
[342190112,1731573069455,-500.0,0.00022739,2]
[342190113,1731573069464,-500.0,0.00022739,2]
[342190114,1731573069473,-500.0,0.00022739,2]
[342190115,1731573069484,-412.80015545,0.00022739,2]
[342190116,1731573069493,-697.04,0.00022739,2]
[342190117,1731573069503,-500.0,0.00022739,2]
[342190118,1731573069512,-500.0,0.00022739,2]
[342190119,1731573069521,-303.06062332,0.00022739,2]
[342190120,1731573069530,-348.46714428,0.00022739,2]
[342190121,1731573069539,-211.88321432,0.00022739,2]
[342190122,1731573069548,-500.0,0.00022739,2]
[342190123,1731573069558,-500.0,0.00022739,2]
[342190124,1731573069567,-686.84,0.00022739,2]
[342190125,1731573069579,-636.64783177,0.00022739,2]
[342190126,1731573069589,-500.0,0.00022739,2]
[342190127,1731573069599,-500.0,0.00022739,2]
[342190128,1731573069608,-500.0,0.00022739,2]
[342190129,1731573069618,-500.0,0.00022739,2]
[342190130,1731573069628,-503.50651808,0.00022739,2]
[342190131,1731573069638,-500.0,0.00022739,2]
[342190132,1731573069648,-507.27702477,0.00022739,2]
[342190133,1731573069659,-500.0,0.00022739,2]
[342190134,1731573069669,-708.18,0.00022739,2]
[342190135,1731573069679,-648.32,0.00022739,2]
[342190136,1731573069689,-511.130836,0.00022739,2]
[342190137,1731573069699,-646.65,0.00022739,2]
[342190138,1731573069709,-500.0,0.00022739,2]
[342190139,1731573069719,-500.0,0.00022739,2]
[342190140,1731573069729,-500.0,0.00022739,2]
[342190141,1731573069739,-500.0,0.00022739,2]
[342190142,1731573069749,-500.0,0.00022739,2]
[342190143,1731573069759,-500.0,0.00022739,2]
[342190144,1731573069769,-500.0,0.00022739,2]
[342190145,1731573069780,-959.98,0.00022739,2]
[342190146,1731573069789,-530.72332957,0.00022739,2]
[342190147,1731573069799,-500.0,0.00022739,2]
[342190148,1731573069808,-500.0,0.00022739,2]
[342190149,1731573069818,-500.0,0.00022739,2]
[342190150,1731573069831,-667.32,0.00022739,2]
[342190151,1731573069841,-500.0,0.00022739,2]
[342190152,1731573069855,-614.21,0.00022739,2]
[342190153,1731573069865,-500.0,0.00022739,2]
[342190154,1731573069874,-1074.05,0.00022739,2]
[342190155,1731573069884,-500.0,0.00022739,2]
[342190156,1731573069894,-500.0,0.00022739,2]
[342190157,1731573069903,-500.0,0.00022739,2]
[342190158,1731573069912,-500.0,0.00022739,2]
[342190159,1731573069922,-751.02,0.00022739,2]
[342190160,1731573069934,-500.0,0.00022739,2]
[342190161,1731573069943,-500.0,0.00022739,2]
[342190162,1731573069954,-500.0,0.00022739,2]
[342190163,1731573069964,-500.0,0.00022739,2]
[342190164,1731573070056,-500.0,0.00022739,2]
[342190165,1731573070067,-507.71658587,0.00022739,2]
[342190166,1731573070079,-500.0,0.00022739,2]
[342190167,1731573070089,-512.53138505,0.00022739,2]
[342190168,1731573070098,-500.0,0.00022739,2]
[342190169,1731573070107,-500.0,0.00022739,2]
[342190170,1731573070117,-500.0,0.00022739,2]
[342190171,1731573070129,-1017.4,0.00022739,2]
[342190172,1731573070139,-500.0,0.00022739,2]
[342190173,1731573070149,-500.0,0.00022739,2]
[342190174,1731573070159,-500.0,0.00022739,2]
[342190175,1731573070168,-700.81,0.00022739,2]
[342190176,1731573070178,-500.0,0.00022739,2]
[342190177,1731573070187,-500.0,0.00022739,2]
[342190178,1731573070197,-506.94730148,0.00022739,2]
[342190179,1731573070207,-500.0,0.00022739,2]
[342190180,1731573070217,-500.0,0.00022739,2]
[342190181,1731573070226,-599.22,0.00022739,2]
[342190182,1731573070236,-500.0,0.00022739,2]
[342190183,1731573070246,-500.0,0.00022739,2]
[342190184,1731573070255,-500.0,0.00022739,2]
[342190185,1731573070266,-500.0,0.00022739,2]
[342190186,1731573070275,-500.0,0.00022739,2]
[342190187,1731573070285,-500.0,0.00022739,2]
[342190188,1731573070295,-500.0,0.00022739,2]
[342190189,1731573070305,-783.57,0.00022739,2]
[342190190,1731573070315,-2336.0,0.00022739,2]
[342190191,1731573070326,-646.63,0.00022739,2]
[342190192,1731573070336,-500.0,0.00022739,2]
[342190193,1731573070345,-500.0,0.00022739,2]
[342190194,1731573070354,-500.0,0.00022739,2]
[342190195,1731573070365,-627.53,0.00022739,2]
[342190196,1731573070375,-589.25,0.00022739,2]
[342190197,1731573070384,-500.0,0.00022739,2]
[342190198,1731573070394,-500.0,0.00022739,2]
[342190199,1731573070403,-503.55666494,0.00022739,2]
[342190200,1731573070413,-500.0,0.00022739,2]
[342190201,1731573070423,-500.0,0.00022739,2]
[342190202,1731573070432,-500.0,0.00022739,2]
[342190203,1731573070442,-507.71976435,0.00022739,2]
[342190204,1731573070451,-500.0,0.00022739,2]
[342190205,1731573070461,-537.38,0.00022739,2]
[342190206,1731573070471,-541.73,0.00022739,2]
[342190207,1731573070480,-500.0,0.00022739,2]
[342190208,1731573070489,-500.0,0.00022739,2]
[342190209,1731573070499,-500.0,0.00022739,2]
[342190210,1731573070509,-500.0,0.00022739,2]
[342190211,1731573070518,-500.0,0.00022739,2]
[342190212,1731573070528,-500.0,0.00022739,2]
[342190213,1731573070538,-500.0,0.00022739,2]
[342190214,1731573070547,-500.0,0.00022739,2]
[342190215,1731573070557,-500.0,0.00022739,2]
[342190216,1731573070566,-867.05,0.00022739,2]
[342190217,1731573070580,-500.0,0.00022739,2]
[342190218,1731573070590,-503.59,0.00022739,2]
[342190219,1731573070600,-713.83,0.00022739,2]
[342190220,1731573070609,-547.41,0.00022739,2]
[342190221,1731573070618,-500.0,0.00022739,2]
[342190222,1731573070627,-500.0,0.00022739,2]
[342190223,1731573070637,-502.68171406,0.00022739,2]
[342190224,1731573070645,-856.07,0.00022739,2]
[342190225,1731573070655,-500.0,0.00022739,2]
[342190226,1731573070664,-500.0,0.00022739,2]
[342190227,1731573070673,-639.31522271,0.00022739,2]
[342190228,1731573070682,-500.0,0.00022739,2]
[342190229,1731573070691,-500.0,0.00022739,2]
[342190230,1731573070701,-506.5130795,0.00022739,2]
[342190231,1731573070718,-500.0,0.00022739,2]
[342190232,1731573070734,-500.0,0.00022739,2]
[342190233,1731573070751,-500.0,0.00022739,2]
[342190234,1731573070771,-508.2478037,0.00022739,2]
[342190235,1731573070790,-699.21,0.00022739,2]
[342190236,1731573070809,-500.0,0.00022739,2]
[342190237,1731573070828,-500.0,0.00022739,2]
[342190238,1731573070841,-1084.66,0.00022739,2]
[342190239,1731573070864,-500.0,0.00022739,2]
[342190240,1731573070885,-926.01,0.00022739,2]
[342190241,1731573070900,-500.0,0.00022739,2]
[342190242,1731573070916,-500.0,0.00022739,2]
[342190243,1731573070933,-499.06147894,0.00022739,2]
[342190244,1731573070950,-500.0,0.00022739,2]
[342190245,1731573070962,-628.32,0.00022739,2]
[342190246,1731573070978,-186.2278655,0.00022739,2]
[342190247,1731573070994,-500.0,0.00022739,2]
[342190248,1731573071011,-500.0,0.00022739,2]
[342190249,1731573071026,-1271.83,0.00022739,2]
[342190250,1731573071040,-500.0,0.00022739,2]
[342190251,1731573071055,-526.91749472,0.00022739,2]
[342190252,1731573071069,-500.0,0.00022739,2]
[342190253,1731573071087,-500.0,0.00022739,2]
[342190254,1731573071101,-500.0,0.00022739,2]
[342190255,1731573071116,-500.0,0.00022739,2]
[342190256,1731573071130,-500.0,0.00022739,2]
[342190257,1731573071145,-317.61471616,0.00022739,2]
[342190258,1731573071159,-818.86,0.00022739,2]
[342190259,1731573071173,-500.0,0.00022739,2]
[342190260,1731573071187,-516.92875525,0.00022739,2]
[342190261,1731573071201,-500.0,0.00022739,2]
[342190262,1731573071215,-500.0,0.00022739,2]
[342190263,1731573071229,-583.79,0.00022739,2]
[342190264,1731573071242,-500.0,0.00022739,2]
[342190265,1731573071256,-17345.35,0.00022739,2]
[342190266,1731573071271,-500.0,0.00022739,2]
[342190267,1731573071285,-508.9,0.00022739,2]
[342190268,1731573071299,-500.0,0.00022739,2]
[342190269,1731573071315,-528.10101178,0.00022739,2]
[342190270,1731573071331,-500.0,0.00022739,2]
[342190271,1731573071345,-500.0,0.00022739,2]
[342190272,1731573071360,-511.15,0.00022739,2]
[342190273,1731573071375,-502.74050596,0.00022739,2]
[342190274,1731573071389,-500.0,0.00022739,2]
[342190275,1731573071403,-500.0,0.00022739,2]
[342190276,1731573071417,-500.0,0.00022739,2]
[342190277,1731573071431,-1740.72,0.00022739,2]
[342190278,1731573071445,-500.0,0.00022739,2]
[342190279,1731573071460,-506.32278571,0.00022739,2]
[342190280,1731573071473,-756.89,0.00022739,2]
[342190281,1731573071487,-500.0,0.00022739,2]
[342190282,1731573071503,-829.87,0.00022739,2]
[342190283,1731573071517,-500.0,0.00022739,2]
[342190284,1731573071532,-625.89,0.00022739,2]
[342190285,1731573071545,-500.0,0.00022739,2]
[342190286,1731573071559,-191.8757652,0.00022739,2]
[342190287,1731573072100,-263.53812653,0.00022739,2]
[342190288,1731573072111,-500.0,0.00022739,2]
[342190289,1731573072120,-500.0,0.00022739,2]
[342190290,1731573072130,-500.0,0.00022739,2]
[342190291,1731573072140,-718.12,0.00022739,2]
[342190292,1731573072149,-964.91,0.00022739,2]
[342190293,1731573072158,-3464.32265299,0.00022739,2]
[342190294,1731573072320,-500.0,0.00021917,2]
[342190295,1731573072333,-57.71,0.00021917,2]
[342190296,1731573072345,-942.29,0.00021917,2]
[342190297,1731573072354,-821.135649,0.00021917,2]
[342190298,1731573072363,-372.19441413,0.00022191,2]
[342190299,1731573072375,-127.80558587,0.00022191,2]
[342190300,1731573072385,-500.0,0.00022465,2]
[342190301,1731573072394,-43.97378248,0.00022739,2]
[342190302,1731573072406,-1337.48356453,0.00022739,2]
[342190303,1731573072415,-500.0,0.00022739,2]
[342190304,1731573072425,-500.0,0.00022739,2]
[342190305,1731573072434,-1984.18,0.00022739,2]
[342190306,1731573072444,-500.0,0.00022739,2]
[342190307,1731573072454,-500.0,0.00022739,2]
[342190308,1731573072464,-512.02,0.00022739,2]
[342190309,1731573072474,-500.0,0.00022739,2]
[342190310,1731573072485,-1439.61,0.00022739,2]
[342190311,1731573072495,-725.06,0.00022739,2]
[342190312,1731573072505,-500.0,0.00022739,2]
[342190313,1731573072514,-500.0,0.00022739,2]
[342190314,1731573072523,-500.0,0.00022739,2]
[342190315,1731573072533,-922.15,0.00022739,2]
[342190316,1731573072542,-500.0,0.00022739,2]
[342190317,1731573072552,-500.0,0.00022739,2]
[342190318,1731573072562,-601.80024129,0.00022739,2]
[342190319,1731573072572,-500.0,0.00022739,2]
[342190320,1731573072587,-273.56318083,0.00022739,2]
[342190321,1731573072599,-226.43681917,0.00022739,2]
[342190322,1731573072609,-267.08788025,0.00022739,2]
[342190323,1731573072621,-232.91211975,0.00022739,2]
[342190324,1731573072630,-367.21425592,0.00022739,2]
[342190325,1731573072867,-7015.625,0.0002,2]
[342190326,1731573072877,-151.0,0.0002129,2]
[342190327,1731573072887,-151.0,0.00021917,2]
[342190328,1731573072896,-151.0,0.00021917,2]
[342190329,1731573072906,-153.891233,0.00021917,2]
[342190330,1731573072916,-132.78574408,0.00022739,2]
[342190331,1731573072925,-500.0,0.00022739,2]
[342190332,1731573072937,-500.0,0.00022739,2]
[342190333,1731573072946,-511.90753387,0.00022739,2]
[342190334,1731573072955,-500.0,0.00022739,2]
[342190335,1731573072965,-2469.96,0.00022739,2]
[342190336,1731573072975,-927.32,0.00022739,2]
[342190337,1731573072985,-535.2980563,0.00022739,2]
[342190338,1731573072994,-679.79,0.00022739,2]
[342190339,1731573073004,-500.0,0.00022739,2]
[342190340,1731573073013,-500.0,0.00022739,2]
[342190341,1731573073022,-842.88,0.00022739,2]
[342190342,1731573073032,-1415.94,0.00022739,2]
[342190343,1731573073042,-1146.99,0.00022739,2]
[342190344,1731573073051,-500.0,0.00022739,2]
[342190345,1731573073061,-500.0,0.00022739,2]
[342190346,1731573073071,-340.14705444,0.00022739,2]
[342190347,1731573073084,-500.0,0.00022739,2]
[342190348,1731573073093,-583.8,0.00022739,2]
[342190349,1731573073103,-500.0,0.00022739,2]
[342190350,1731573073113,-500.0,0.00022739,2]
[342190351,1731573073122,-1972.19,0.00022739,2]
[342190352,1731573073133,-500.0,0.00022739,2]
[342190353,1731573073143,-500.0,0.00022739,2]
[342190354,1731573073152,-500.0,0.00022739,2]
[342190355,1731573073162,-887.8,0.00022739,2]
[342190356,1731573073171,-3866.65,0.00022739,2]
[342190357,1731573073180,-500.0,0.00022739,2]
[342190358,1731573073190,-500.0,0.00022739,2]
[342190359,1731573073199,-500.0,0.00022739,2]
[342190360,1731573073209,-500.0,0.00022739,2]
[342190361,1731573073315,-1028.53,0.00022739,2]
[342190362,1731573073327,-500.49,0.00022739,2]
[342190363,1731573073336,-500.0,0.00022739,2]
[342190364,1731573073345,-234.51672028,0.00022739,2]
[342190365,1731573073356,-500.6,0.00022739,2]
[342190366,1731573073366,-551.13,0.00022739,2]
[342190367,1731573073376,-554.7,0.00022739,2]
[342190368,1731573073386,-500.0,0.00022739,2]
[342190369,1731573073396,-389.54879438,0.00022739,2]
[342190370,1731573073405,-500.0,0.00022739,2]
[342190371,1731573073414,-511.0125337,0.00022739,2]
[342190372,1731573073423,-2235.09,0.00022739,2]
[342190373,1731573073433,-1562.1,0.00022739,2]
[342190374,1731573073444,-506.07639156,0.00022739,2]
[342190375,1731573073453,-500.0,0.00022739,2]
[342190376,1731573073463,-85.0308609,0.00022739,2]
[342190377,1731573073475,-438.37007924,0.00022739,2]
[342190378,1731573073484,-440.68039984,0.00022739,2]
[342190379,1731573073494,-500.0,0.00022739,2]
[342190380,1731573073503,-500.0,0.00022739,2]
[342190381,1731573073512,-2880.8,0.00022739,2]
[342190382,1731573073522,-346.32178437,0.00022739,2]
[342190383,1731573073531,-879.61,0.00022739,2]
[342190384,1731573073541,-500.0,0.00022739,2]
[342190385,1731573073550,-500.0,0.00022739,2]
[342190386,1731573073560,-1120.94,0.00022739,2]
[342190387,1731573073570,-500.0,0.00022739,2]